[Event "ISR-chT 2019"]
[Site "Israel"]
[Date "2019.02.22"]
[Round "7.12"]
[White "Aharon, Ofir"]
[Black "Kantsler, Boris"]
[Result "0-1"]
[ECO "B07"]
[WhiteElo "2308"]
[BlackElo "2398"]
[Annotator "NA"]
[PlyCount "94"]
[EventDate "2019.01.04"]
[EventType "team-tourn"]
[EventCountry "ISR"]
[SourceTitle "playchess.com"]
[Source "ChessBase"]
[SourceQuality "1"]
[TimeControl "40/5400+30:1800+30"]

1. e4 {[%emt 0:00:00]} d6 {[%emt 0:00:00]} 2. d4 {[%emt 0:00:00]} Nf6 {[%emt 0:00:02]} 3. Nc3 {[%emt 0:00:00]} e5 {[%emt 0:00:19]} 4. Nge2 {[%emt 0:00:22]} Nc6 {[%emt 0:01:55]} 5. h3 {[%emt 0:06:31]} Be7 {[%emt 0:09:56]} 6. g4 {[%emt 0:01:42]} d5 {[%emt 0:02:28]} 7. exd5 {[%emt 0:09:38]} Nxd5 {[%emt 0:01:55]} 8. dxe5 {[%emt 0:02:16]} Nxc3 {[%emt 0:06:13]} 9. Qxd8+ {[%emt 0:00:17]} Bxd8 {[%emt 0:00:07]} 10. Nxc3 {[%emt 0:00:11]} Nxe5 {[%emt 0:00:12]} 11. Bg2 {[%emt 0:03:51]} O-O {[%emt 0:05:14]} 12. O-O {[%emt 0:08:19]} f5 $11 {[%emt 0:09:05]} 13. f4 {[%emt 0:03:02]} Ng6 {[%emt 0:01:43]} 14. g5 {[%emt 0:01:50]} c6 {[%emt 0:01:03]} 15. Kh2 {[%emt 0:11:23]} h6 {[%emt 0:09:20]} 16. gxh6 {[%emt 0:02:25]} gxh6 {[%emt 0:03:00]} 17. Ne2 {[%emt 0:03:55]} Bf6 {[%emt 0:08:29]} 18. Ng3 {[%emt 0:01:28]} Be6 {[%emt 0:01:14]} 19. Nh5 {[%emt 0:03:21]} Bh8 {[%emt 0:00:16]} 20. Be3 {[%emt 0:00:29]} Rfe8 {[%emt 0:06:01]} 21. Rae1 {[%emt 0:05:47]} Rad8 {[%emt 0:03:58]} 22. Rg1 {[%emt 0:04:10]} Kf7 {[%emt 0:01:48]} 23. Bf1 {[%emt 0:02:13]} Bd5 {[%emt 0:05:55]} 24. Rg3 {[%emt 0:07:35]} Nh4 {[%emt 0:06:32]} 25. Be2 {[%emt 0:00:01]} Rxe3 {[%emt 0:00:19]} 26. Rxe3 {[%emt 0:00:26]} Ng2 {[%emt 0:00:01]} 27. Bd3 {[%emt 0:02:54]} Nxe1 {[%emt 0:01:48]} 28. Rxe1 {[%emt 0:00:01]} Be4 {[%emt 0:00:04]} 29. Bxe4 {[%emt 0:15:18]} fxe4 {[%emt 0:00:07]} 30. Ng3 {[%emt 0:00:19]} Rd2+ {[%emt 0:00:53]} 31. Re2 {[%emt 0:00:01]} Rxe2+ 32. Nxe2 {[%emt 0:00:01]} Bxb2 {[%emt 0:00:59]} 33. Kg2 {[%emt 0:02:55]} Ke6 {[%emt 0:01:24]} 34. Kf2 {[%emt 0:02:15]} Kd5 {[%emt 0:00:22]} 35. Ke3 {[%emt 0:00:21]} b5 {[%emt 0:00:38]} 36. f5 {[%emt 0:01:08]} Bf6 {[%emt 0:00:57]} 37. Kf4 {[%emt 0:01:14]} h5 {[%emt 0:02:09]} 38. Nc1 {[%emt 0:00:38]} c5 {[%emt 0:01:55]} 39. Ne2 {[%emt 0:00:35]} b4 {[%emt 0:00:24]} 40. Nc1 {[%emt 0:00:26]} c4 {[%emt 0:00:22]} 41. Ne2 {[%emt 0:04:41]} a5 {[%emt 0:00:19]} 42. Ke3 {[%emt 0:05:45]} Bg5+ {[%emt 0:02:18]} 43. Kf2 {[%emt 0:00:12]} Ke5 {[%emt 0:01:07]} 44. Kg2 {[%emt 0:02:16]} a4 {[%emt 0:00:40]} 45. Kg3 {[%emt 0:01:17]} b3 {[%emt 0:03:17]} 46. cxb3 {[%emt 0:01:49]} cxb3 {[%emt 0:00:04]} 47. axb3 {[%emt 0:00:51]} axb3 {[%emt 0:00:05]} 0-1

[Event "ISR-chT 2019"]
[Site "Israel"]
[Date "2019.02.22"]
[Round "7.13"]
[White "Rodshtein, Maxim"]
[Black "Zanan, Evgeny"]
[Result "1/2-1/2"]
[ECO "E70"]
[WhiteElo "2668"]
[BlackElo "2532"]
[Annotator "ChessBase"]
[PlyCount "94"]
[EventDate "2019.01.04"]
[EventType "team-tourn"]
[EventCountry "ISR"]
[SourceTitle "playchess.com"]
[Source "ChessBase"]
[SourceQuality "1"]
[TimeControl "40/5400+30:1800+30"]

1. c4 {[%emt 0:00:00]} Nf6 {[%emt 0:00:00]} 2. Nc3 {[%emt 0:00:13]} g6 {[%emt 0:00:00]} 3. e4 {[%emt 0:00:41]} d6 {[%emt 0:00:00]} 4. d4 {[%emt 0:00:17]} Bg7 {[%emt 0:00:00]} 5. Nge2 {[%emt 0:01:55]} O-O {[%emt 0:00:32]} 6. Ng3 {[%emt 0:00:05]} e5 {[%emt 0:00:06]} 7. d5 {[%emt 0:00:06]} a5 {[%emt 0:00:04]} 8. Be2 {[%emt 0:08:06]} Na6 {[%emt 0:00:29]} 9. h4 {[%emt 0:02:17]} h5 {[%emt 0:00:11]} 10. Bg5 {[%emt 0:00:20]} Qe8 {[%emt 0:00:09]} 11. Qd2 {[%emt 0:07:59]} Nc5 {[%emt 0:09:02]} 12. O-O-O {[%emt 0:02:05]} a4 {[%emt 0:10:19]} 13. Kb1 {[%emt 0:01:38]} Ng4 {[%emt 0:03:09]} 14. Qe1 {[%emt 0:39:49]} f6 {[%emt 0:07:23]} 15. Bc1 {[%emt 0:00:05]} f5 {[%emt 0:00:19]} 16. f3 {[%emt 0:00:53]} Nf6 {[%emt 0:00:18]} 17. Qd2 {[%emt 0:00:49]} Bd7 {[%emt 0:09:32]} 18. Qc2 {[%emt 0:02:29]} f4 {[%emt 0:06:51]} 19. Nf1 {[%emt 0:00:10]} Qe7 {[%emt 0:00:08]} 20. Bd2 {[%emt 0:12:04]} c6 {[%emt 0:01:45]} 21. Be1 {[%emt 0:00:31]} cxd5 {[%emt 0:01:50]} 22. Nxd5 {[%emt 0:00:04]} Nxd5 {[%emt 0:00:36]} 23. Rxd5 {[%emt 0:00:05]} Be6 {[%emt 0:00:34]} 24. Rd1 {[%emt 0:03:19]} b5 {[%emt 0:01:29]} 25. Bb4 {[%emt 0:01:04]} Rfc8 {[%emt 0:00:33]} 26. Nd2 {[%emt 0:01:27]} Na6 {[%emt 0:09:28]} 27. a3 {[%emt 0:00:05]} Nxb4 {[%emt 0:00:44]} 28. axb4 {[%emt 0:00:04]} Rab8 {[%emt 0:10:28]} 29. Rc1 {[%emt 0:02:22]} bxc4 {[%emt 0:01:14]} 30. Bxc4 {[%emt 0:00:14]} Kh7 {[%emt 0:08:33]} 31. b5 {[%emt 0:03:02]} Bxc4 {[%emt 0:03:39]} 32. Nxc4 {[%emt 0:00:08]} Rxb5 {[%emt 0:00:17]} 33. Qxa4 {[%emt 0:02:25]} Rbc5 {[%emt 0:04:42]} 34. Rhd1 {[%emt 0:07:08]} R8c6 {[%emt 0:03:19]} 35. Rd5 {[%emt 0:00:41]} Qc7 {[%emt 0:04:11]} 36. Rxc5 {[%emt 0:00:35]} Rxc5 {[%emt 0:00:02]} 37. Qa6 {[%emt 0:00:55]} Bf8 {[%emt 0:02:07]} 38. b4 {[%emt 0:01:05]} Rc6 {[%emt 0:00:01]} 39. Qa5 {[%emt 0:00:19]} Qb7 {[%emt 0:01:41]} 40. b5 {[%emt 0:01:49]} Rc5 {[%emt 0:02:47]} 41. Na3 {[%emt 0:09:23]} d5 {[%emt 0:07:27]} 42. Rxc5 {[%emt 0:01:41]} Bxc5 {[%emt 0:07:56]} 43. Nc2 {[%emt 0:03:05]} dxe4 {[%emt 0:00:57]} 44. fxe4 {[%emt 0:00:04]} Kh6 {[%emt 0:03:30]} 45. Qa4 {[%emt 0:00:50]} Qf7 {[%emt 0:02:33]} 46. Kb2 {[%emt 0:05:18]} Bb6 {[%emt 0:03:10]} 47. Qa8 {[%emt 0:02:24]} Kg7 {[%emt 0:02:03]} 1/2-1/2

[Event "ISR-chT 2019"]
[Site "Israel"]
[Date "2019.02.22"]
[Round "7.14"]
[White "Baron, Tal"]
[Black "Postny, Evgeny"]
[Result "0-1"]
[ECO "C90"]
[WhiteElo "2517"]
[BlackElo "2630"]
[Annotator "RC"]
[PlyCount "86"]
[EventDate "2019.01.04"]
[EventType "team-tourn"]
[EventCountry "ISR"]
[SourceTitle "playchess.com"]
[Source "ChessBase"]
[SourceQuality "1"]
[TimeControl "40/5400+30:1800+30"]

1. e4 {[%emt 0:03:30]} e5 {[%emt 0:00:00]} 2. Nf3 {[%emt 0:00:08]} Nc6 {[%emt 0:00:00]} 3. Bb5 {[%emt 0:00:12]} a6 {[%emt 0:00:00]} 4. Ba4 {[%emt 0:00:03]} Nf6 {[%emt 0:00:00]} 5. O-O {[%emt 0:00:26]} Be7 {[%emt 0:00:02]} 6. Re1 {[%emt 0:02:34]} b5 {[%emt 0:00:06]} 7. Bb3 {[%emt 0:00:02]} d6 {[%emt 0:00:04]} 8. c3 {[%emt 0:00:12]} Na5 {[%emt 0:00:19]} 9. Bc2 {[%emt 0:00:38]} c5 {[%emt 0:00:07]} 10. d4 {[%emt 0:02:24]} Qc7 {[%emt 0:00:05]} 11. Nbd2 {[%emt 0:05:58]} O-O {[%emt 0:01:02]} 12. b3 {[%emt 0:03:26]} Bd7 {[%emt 0:05:55]} 13. Nf1 {[%emt 0:01:58]} cxd4 {[%emt 0:04:20]} 14. cxd4 {[%emt 0:03:34]} Bg4 {[%emt 0:00:06]} 15. Ne3 {[%emt 0:17:21]} Bxf3 {[%emt 0:01:46]} 16. Qxf3 {[%emt 0:01:38]} Nc6 {[%emt 0:00:08]} 17. Bb2 {[%emt 0:15:41]} Nxd4 {[%emt 0:03:11]} 18. Bxd4 {[%emt 0:00:32]} exd4 {[%emt 0:00:07]} 19. Nf5 {[%emt 0:00:16]} g6 {[%emt 0:04:56]} 20. Nxe7+ {[%emt 0:03:05]} Qxe7 {[%emt 0:00:06]} 21. Qd3 {[%emt 0:03:47]} Rac8 {[%emt 0:02:11]} 22. Re2 {[%emt 0:04:38]} Rc3 {[%emt 0:06:36]} 23. Qxd4 {[%emt 0:00:13]} Rfc8 {[%emt 0:00:07]} 24. Bd1 {[%emt 0:06:12]} Qe5 {[%emt 0:06:46]} 25. Qxe5 {[%emt 0:01:53]} dxe5 {[%emt 0:00:06]} 26. Kf1 {[%emt 0:02:12]} Nd7 {[%emt 0:00:50]} 27. Rd2 {[%emt 0:05:21]} Nc5 {[%emt 0:04:57]} 28. Rd5 {[%emt 0:00:31]} f6 {[%emt 0:03:43]} 29. Rd6 {[%emt 0:02:04]} Nxe4 {[%emt 0:07:54]} 30. Rxa6 {[%emt 0:00:03]} Rc1 {[%emt 0:00:14]} 31. Rxc1 {[%emt 0:00:05]} Rxc1 {[%emt 0:00:04]} 32. Ke2 {[%emt 0:00:57]} b4 {[%emt 0:00:34]} 33. Ke3 {[%emt 0:03:58]} Nc3 {[%emt 0:01:18]} 34. Bf3 {[%emt 0:00:56]} e4 {[%emt 0:00:41]} 35. Bg4 {[%emt 0:00:40]} f5 {[%emt 0:00:16]} 36. Bh3 {[%emt 0:00:15]} Rc2 {[%emt 0:08:43]} 37. f3 {[%emt 0:00:18]} Nd5+ {[%emt 0:05:40]} 38. Kd4 {[%emt 0:00:03]} Rd2+ {[%emt 0:00:05]} 39. Kc4 {[%emt 0:04:58]} e3 {[%emt 0:00:17]} 40. Re6 {[%emt 0:00:38]} Kf7 {[%emt 0:06:46]} 41. Re5 {[%emt 0:30:04]} Kf6 {[%emt 0:30:20]} 42. f4 {[%emt 0:03:48]} h5 {[%emt 0:07:54]} 43. g3 {[%emt 0:00:47]} e2 {[%emt 0:00:09]} 0-1

[Event "ISR-chT 2019"]
[Site "Israel"]
[Date "2019.02.22"]
[Round "7.17"]
[White "Huzman, Alexander"]
[Black "Bronstein, Or"]
[Result "1-0"]
[ECO "D75"]
[WhiteElo "2579"]
[BlackElo "2396"]
[Annotator "ChessBase"]
[PlyCount "109"]
[EventDate "2019.01.04"]
[EventType "team-tourn"]
[EventCountry "ISR"]
[SourceTitle "playchess.com"]
[Source "ChessBase"]
[SourceQuality "1"]
[TimeControl "40/5400+30:1800+30"]

1. Nf3 {[%emt 0:00:00]} Nf6 {[%emt 0:00:33]} 2. c4 {[%emt 0:02:00]} c5 {[%emt 0:00:53]} 3. g3 {[%emt 0:05:55]} g6 {[%emt 0:06:16]} 4. Bg2 {[%emt 0:01:27]} Bg7 {[%emt 0:01:01]} 5. O-O {[%emt 0:02:26]} O-O {[%emt 0:00:41]} 6. Nc3 {[%emt 0:06:28]} d5 {[%emt 0:00:29]} 7. cxd5 {[%emt 0:05:26]} Nxd5 {[%emt 0:00:29]} 8. Nxd5 {[%emt 0:00:18]} Qxd5 {[%emt 0:00:03]} 9. d4 {[%emt 0:00:08]} cxd4 {[%emt 0:02:16]} 10. Be3 {[%emt 0:02:25]} Nc6 {[%emt 0:05:57]} 11. Nxd4 {[%emt 0:01:53]} Qc4 {[%emt 0:01:14]} 12. Bxc6 {[%emt 0:27:01]} bxc6 {[%emt 0:12:55]} 13. Qc1 {[%emt 0:00:59]} Ba6 {[%emt 0:15:43]} 14. Qxc4 {[%emt 0:01:32]} Bxc4 {[%emt 0:01:26]} 15. Rfc1 {[%emt 0:00:51]} Bxd4 {[%emt 0:19:56]} 16. Rxc4 {[%emt 0:01:44]} Bxe3 {[%emt 0:09:26]} 17. fxe3 {[%emt 0:01:01]} Rfd8 {[%emt 0:00:31]} 18. Rac1 {[%emt 0:02:24]} Rd2 {[%emt 0:00:11]} 19. R1c2 {[%emt 0:00:31]} Rxc2 {[%emt 0:00:09]} 20. Rxc2 {[%emt 0:00:03]} Rb8 {[%emt 0:02:12]} 21. b3 {[%emt 0:03:09]} Rb6 {[%emt 0:00:21]} 22. Kf2 {[%emt 0:00:13]} Kg7 {[%emt 0:02:18]} 23. e4 {[%emt 0:00:45]} Kf6 {[%emt 0:01:08]} 24. Ke3 {[%emt 0:02:39]} Ke5 {[%emt 0:01:17]} 25. Rc5+ {[%emt 0:03:47]} Kd6 {[%emt 0:00:09]} 26. Ra5 {[%emt 0:00:06]} Rb7 {[%emt 0:03:28]} 27. Kd4 {[%emt 0:03:21]} f6 {[%emt 0:06:17]} 28. Kc4 {[%emt 0:01:46]} h5 {[%emt 0:02:24]} 29. b4 {[%emt 0:02:22]} Rc7 {[%emt 0:01:53]} 30. Kd4 {[%emt 0:02:36]} Rd7 {[%emt 0:00:30]} 31. Ra6 {[%emt 0:04:09]} Rb7 {[%emt 0:01:43]} 32. a3 {[%emt 0:00:36]} Kd7 {[%emt 0:01:10]} 33. e5 {[%emt 0:06:01]} Kc7 {[%emt 0:00:18]} 34. e4 {[%emt 0:03:20]} fxe5+ {[%emt 0:00:53]} 35. Kxe5 {[%emt 0:00:07]} Rb5+ {[%emt 0:00:43]} 36. Ke6 {[%emt 0:00:07]} Kb7 {[%emt 0:00:04]} 37. Ra4 {[%emt 0:00:12]} h4 {[%emt 0:00:39]} 38. gxh4 {[%emt 0:04:41]} Kb6 {[%emt 0:00:07]} 39. Kxe7 {[%emt 0:01:26]} Re5+ {[%emt 0:00:13]} 40. Kf6 {[%emt 0:00:06]} Rxe4 {[%emt 0:00:13]} 41. Kg5 {[%emt 0:30:02]} Rd4 {[%emt 0:07:48]} 42. Ra5 {[%emt 0:00:00]} a6 {[%emt 0:06:29]} 43. h5 {[%emt 0:00:00]} gxh5 {[%emt 0:00:15]} 44. Kxh5 {[%emt 0:00:00]} Rd3 {[%emt 0:01:40]} 45. h4 {[%emt 0:00:00]} c5 {[%emt 0:00:10]} 46. Rxc5 {[%emt 0:00:00]} Rxa3 {[%emt 0:00:02]} 47. Kg6 {[%emt 0:00:00]} Rb3 {[%emt 0:02:05]} 48. Rg5 {[%emt 0:00:00]} Rxb4 {[%emt 0:00:23]} 49. h5 {[%emt 0:00:00]} Rc4 {[%emt 0:03:59]} 50. h6 {[%emt 0:00:00]} a5 {[%emt 0:01:17]} 51. h7 {[%emt 0:00:00]} Rc8 {[%emt 0:01:40]} 52. Kh6 {[%emt 0:00:00]} a4 {[%emt 0:02:09]} 53. Rg8 {[%emt 0:00:00]} Rc4 {[%emt 0:02:02]} 54. Rg6+ {[%emt 0:00:00]} Kb7 {[%emt 0:00:18]} 55. h8=Q {[%emt 0:00:00]} 1-0

[Event "ISR-chT 2019"]
[Site "Israel"]
[Date "2019.02.22"]
[Round "7.19"]
[White "Shvidler, Eliahu"]
[Black "Zubov, Alexander"]
[Result "0-1"]
[ECO "E08"]
[WhiteElo "2357"]
[BlackElo "2599"]
[Annotator "RC"]
[PlyCount "152"]
[EventDate "2019.01.04"]
[EventType "team-tourn"]
[EventCountry "ISR"]
[SourceTitle "playchess.com"]
[Source "ChessBase"]
[SourceQuality "1"]
[TimeControl "40/5400+30:1800+30"]

1. Nf3 {[%emt 0:00:41]} Nf6 {[%emt 0:11:24]} 2. g3 {[%emt 0:03:34]} d5 {[%emt 0:02:40]} 3. c4 {[%emt 0:05:01]} e6 {[%emt 0:02:01]} 4. Bg2 {[%emt 0:02:30]} Be7 {[%emt 0:03:47]} 5. O-O {[%emt 0:01:24]} O-O {[%emt 0:00:07]} 6. d4 {[%emt 0:00:13]} c6 {[%emt 0:01:20]} 7. Qc2 {[%emt 0:02:51]} Nbd7 {[%emt 0:00:12]} 8. Bf4 {[%emt 0:03:40]} Ne4 {[%emt 0:05:40]} 9. Nc3 {[%emt 0:05:04]} g5 {[%emt 0:01:29]} 10. Be3 {[%emt 0:02:58]} Nd6 {[%emt 0:00:24]} 11. cxd5 {[%emt 0:08:13]} exd5 {[%emt 0:00:21]} 12. Bd2 {[%emt 0:00:24]} Nb6 {[%emt 0:11:14]} 13. b3 {[%emt 0:12:32]} Bf5 {[%emt 0:01:34]} 14. Qc1 {[%emt 0:00:29]} f6 {[%emt 0:00:33]} 15. Ne1 {[%emt 0:02:42]} Bg6 {[%emt 0:07:55]} 16. Nc2 {[%emt 0:05:53]} Re8 {[%emt 0:10:41]} 17. Re1 {[%emt 0:03:34]} Bf8 {[%emt 0:00:42]} 18. a4 {[%emt 0:02:07]} a5 {[%emt 0:01:01]} 19. Ne3 {[%emt 0:04:41]} Qd7 {[%emt 0:05:02]} 20. f3 {[%emt 0:03:35]} h5 {[%emt 0:09:31]} 21. Ned1 {[%emt 0:01:54]} Nf5 {[%emt 0:01:12]} 22. e3 {[%emt 0:00:46]} Nc8 {[%emt 0:05:24]} 23. Nf2 {[%emt 0:02:32]} Ncd6 {[%emt 0:00:03]} 24. Ne2 {[%emt 0:01:03]} Ng7 {[%emt 0:02:20]} 25. Nc3 {[%emt 0:05:22]} Ne6 {[%emt 0:00:56]} 26. Qd1 {[%emt 0:02:25]} Nf5 {[%emt 0:00:17]} 27. Bh3 {[%emt 0:01:13]} Qf7 {[%emt 0:00:20]} 28. Bf1 {[%emt 0:02:05]} h4 {[%emt 0:04:26]} 29. g4 {[%emt 0:01:50]} Nd6 {[%emt 0:00:17]} 30. Ne2 {[%emt 0:01:32]} Qh7 {[%emt 0:01:51]} 31. Rc1 {[%emt 0:01:35]} Bg7 {[%emt 0:03:06]} 32. Bc3 {[%emt 0:02:18]} Bh8 {[%emt 0:02:02]} 33. Qd2 {[%emt 0:00:54]} Qc7 {[%emt 0:00:03]} 34. Nd3 {[%emt 0:01:15]} Qb6 {[%emt 0:02:27]} 35. Rb1 {[%emt 0:04:11]} Bg7 {[%emt 0:00:50]} 36. Rb2 {[%emt 0:00:21]} Qc7 {[%emt 0:00:21]} 37. Nf2 {[%emt 0:02:06]} b5 {[%emt 0:02:32]} 38. Ra2 {[%emt 0:00:32]} b4 {[%emt 0:00:41]} 39. Bb2 {[%emt 0:00:33]} f5 {[%emt 0:01:20]} 40. gxf5 {[%emt 0:01:03]} Bxf5 {[%emt 0:00:20]} 41. Bg2 {[%emt 0:30:55]} Rad8 {[%emt 0:08:00]} 42. Raa1 {[%emt 0:00:00]} Qd7 {[%emt 0:04:19]} 43. Rac1 {[%emt 0:00:00]} Nf7 {[%emt 0:01:34]} 44. h3 {[%emt 0:00:00]} Re7 {[%emt 0:00:38]} 45. e4 {[%emt 0:00:00]} Bg6 {[%emt 0:02:08]} 46. e5 {[%emt 0:00:00]} Rf8 {[%emt 0:03:43]} 47. Ng4 {[%emt 0:00:00]} Nfd8 {[%emt 0:00:20]} 48. Rf1 {[%emt 0:00:00]} Ref7 {[%emt 0:00:08]} 49. Rf2 {[%emt 0:00:00]} Qb7 {[%emt 0:05:16]} 50. f4 {[%emt 0:00:00]} Nxf4 {[%emt 0:00:56]} 51. Nxf4 {[%emt 0:00:00]} Rxf4 {[%emt 0:02:55]} 52. Rxf4 {[%emt 0:00:53]} Rxf4 {[%emt 0:00:22]} 53. Nf2 {[%emt 0:03:07]} Bf8 {[%emt 0:02:50]} 54. Nd3 {[%emt 0:00:20]} Rf5 {[%emt 0:00:09]} 55. Rf1 {[%emt 0:01:19]} Ne6 {[%emt 0:01:27]} 56. Rxf5 {[%emt 0:01:11]} Bxf5 {[%emt 0:00:01]} 57. Bf1 {[%emt 0:00:25]} Qf7 {[%emt 0:01:32]} 58. Qc1 {[%emt 0:00:16]} Qd7 {[%emt 0:00:23]} 59. Qe3 {[%emt 0:00:19]} Qg7 {[%emt 0:00:39]} 60. Nf2 {[%emt 0:00:21]} Nf4 {[%emt 0:00:44]} 61. Qf3 {[%emt 0:00:14]} Qg6 {[%emt 0:01:16]} 62. Bc1 {[%emt 0:00:15]} Ne6 {[%emt 0:00:25]} 63. Be3 {[%emt 0:00:09]} Bc2 {[%emt 0:00:21]} 64. Qg4 {[%emt 0:00:22]} Kf7 {[%emt 0:00:48]} 65. Qf3+ {[%emt 0:00:14]} Ke8 {[%emt 0:01:06]} 66. Qg4 {[%emt 0:00:26]} Be7 {[%emt 0:00:11]} 67. Be2 {[%emt 0:00:22]} Kd7 {[%emt 0:00:50]} 68. Bd1 {[%emt 0:00:07]} Qf5 {[%emt 0:00:26]} 69. Qe2 {[%emt 0:00:25]} Bxd1 {[%emt 0:00:14]} 70. Qxd1 {[%emt 0:00:01]} Bd8 {[%emt 0:00:22]} 71. Qf1 {[%emt 0:00:48]} Bb6 {[%emt 0:00:37]} 72. Qa6 {[%emt 0:00:17]} Kc7 {[%emt 0:00:04]} 73. Qa8 {[%emt 0:00:31]} Nxd4 {[%emt 0:00:44]} 74. Kf1 {[%emt 0:00:01]} Qxe5 {[%emt 0:00:17]} 75. Ng4 {[%emt 0:00:13]} Qf5+ {[%emt 0:00:10]} 76. Kg1 {[%emt 0:00:17]} Qf3 {[%emt 0:01:19]} 0-1

[Event "ISR-chT 2019"]
[Site "Israel"]
[Date "2019.02.22"]
[Round "7.23"]
[White "Kreizberg, Michael"]
[Black "Arlinsky, Uriel"]
[Result "1-0"]
[ECO "E06"]
[WhiteElo "2305"]
[BlackElo "2336"]
[Annotator "NA"]
[PlyCount "101"]
[EventDate "2019.01.04"]
[EventType "team-tourn"]
[EventCountry "ISR"]
[SourceTitle "playchess.com"]
[Source "ChessBase"]
[SourceQuality "1"]
[TimeControl "40/5400+30:1800+30"]

1. d4 {[%emt 0:02:40]} Nf6 {[%emt 0:01:56]} 2. c4 {[%emt 0:00:08]} e6 {[%emt 0:00:14]} 3. g3 {[%emt 0:00:08]} Bb4+ {[%emt 0:00:45]} 4. Bd2 {[%emt 0:00:09]} Be7 {[%emt 0:00:28]} 5. Bg2 {[%emt 0:00:15]} O-O {[%emt 0:00:14]} 6. Nf3 {[%emt 0:03:15]} d5 {[%emt 0:00:51]} 7. O-O {[%emt 0:00:07]} c6 {[%emt 0:00:21]} 8. Qc2 {[%emt 0:00:35]} b6 {[%emt 0:03:13]} 9. Bf4 {[%emt 0:00:35]} Bb7 {[%emt 0:02:01]} 10. Ne5 {[%emt 0:05:29]} Nh5 {[%emt 1:24:57] E06: Closed Catalan: Early deviations} (10... Nbd7 11. Rd1 Rc8 12. Nc3 Nh5 13. Be3 Nhf6 14. Nxd7 Nxd7 15. b3 f5 16. Bc1 Bd6 17. a4 a5 18. Ba3 Qe7 19. Bxd6 Qxd6 20. e3 {1-0 (70) Radjabov,T (2713)-Wang,H (2735) Beijing 2013}) 11. Bc1 $146 {[%emt 0:13:15]} Nf6 {[%emt 0:00:00]} 12. Rd1 {[%emt 0:00:17]} Qc8 {[%emt 0:00:00]} 13. Nc3 {[%emt 0:08:00]} b5 {[%emt 0:00:00]} 14. c5 {[%emt 0:12:55]} b4 {[%emt 0:00:00]} 15. Na4 {[%emt 0:03:37]} Ba6 {[%emt 0:00:00]} 16. Nd3 {[%emt 0:07:08]} Qb7 {[%emt 0:00:00]} 17. Bd2 {[%emt 0:00:23]} Nbd7 {[%emt 0:00:00]} 18. Bf1 {[%emt 0:01:11]} Bxd3 {[%emt 0:00:00]} 19. Qxd3 {[%emt 0:00:52]} e5 {[%emt 0:00:00]} 20. e3 {[%emt 0:00:24]} a5 {[%emt 0:00:00]} 21. a3 {[%emt 0:00:26]} Ne4 {[%emt 0:00:00]} 22. Be1 {[%emt 0:07:59]} Ng5 {[%emt 0:00:00]} 23. Bg2 {[%emt 0:06:08]} e4 {[%emt 0:00:00]} 24. Qe2 {[%emt 0:01:02]} f5 {[%emt 0:00:00]} 25. axb4 {[%emt 0:02:46]} axb4 {[%emt 0:00:00]} 26. b3 {[%emt 0:00:30]} Bd8 {[%emt 0:00:00]} 27. Ra2 {[%emt 0:03:18]} Bc7 {[%emt 0:00:00]} 28. Rda1 {[%emt 0:00:30]} g6 {[%emt 0:00:00]} 29. h4 {[%emt 0:00:30]} Ne6 {[%emt 0:00:00]} 30. Nb2 {[%emt 0:03:44]} Nf6 {[%emt 0:00:00]} 31. Nd1 {[%emt 0:07:28]} h5 {[%emt 0:00:00]} 32. Ra6 {[%emt 0:01:30]} Ng4 {[%emt 0:00:38]} 33. Qa2 {[%emt 0:00:39]} Rae8 {[%emt 0:04:38]} 34. Qa4 {[%emt 0:00:51]} Nd8 {[%emt 0:00:53]} 35. Ra8 {[%emt 0:02:27]} f4 {[%emt 0:01:34]} 36. gxf4 {[%emt 0:01:18]} Bxf4 {[%emt 0:01:56]} 37. Qa7 {[%emt 0:00:25]} Bh2+ {[%emt 0:01:25]} 38. Kh1 {[%emt 0:00:30]} Qf7 {[%emt 0:00:30]} 39. Qxf7+ {[%emt 0:00:30]} Rxf7 {[%emt 0:00:30]} 40. Bxb4 {[%emt 0:00:00]} Ref8 {[%emt 0:00:48]} 41. Rc8 {[%emt 0:32:16]} Rb7 {[%emt 0:30:44]} 42. Ba5 {[%emt 0:00:30]} Rb8 {[%emt 0:00:30]} 43. Rxd8 {[%emt 0:00:00]} Rbxd8 44. Bxd8 {[%emt 0:00:00]} Rxd8 {[%emt 0:00:00]} 45. Ra6 {[%emt 0:00:00]} Rb8 {[%emt 0:00:00]} 46. Bh3 {[%emt 0:00:00]} Bc7 {[%emt 0:00:00]} 47. Rxc6 {[%emt 0:00:00]} Ba5 {[%emt 0:00:00]} 48. Bxg4 {[%emt 0:00:00]} hxg4 {[%emt 0:00:00]} 49. Rxg6+ {[%emt 0:00:00]} Kf7 {[%emt 0:00:00]} 50. Rxg4 {[%emt 0:00:00]} Rxb3 {[%emt 0:00:00]} 51. h5 {[%emt 0:08:50]} 1-0